[Event "Charlotte Spring IM-B 2024"]
[Site "Charlotte"]
[Date "2024.03.28"]
[Round "1.1"]
[White "Bregadze, Levan"]
[Black "Diaz Charpentier, Kristel Meliss"]
[Result "1-0"]
[ECO "B26"]
[WhiteElo "2435"]
[BlackElo "1990"]
[Annotator "TA"]
[PlyCount "77"]
[EventDate "2024.03.27"]
[EventType "tourn"]
[EventCountry "USA"]
[SourceTitle "playchess.com"]
[Source "ChessBase"]
[SourceQuality "1"]
[TimeControl "5400+30"]

{[%evp 21,77,-21,-4,0,-3,4,51,44,43,42,47,26,40,12,46,20,92,84,95,38,50,52,132,31,54,52,43,55,58,29,32,22,33,22,14,0,0,0,0,0,50,22,17,39,41,14,20,14,373,345,845,822,862,872,859,884,869,851]} 1. e4 {[%emt 0:00:05]} c5 {[%emt 0:00:08]} 2. Nc3 {[%emt 0:00:17]} Nc6 {[%emt 0:00:23]} 3. g3 {[%emt 0:00:15]} g6 {[%emt 0:00:32]} 4. d3 {[%emt 0:00:24]} Bg7 {[%emt 0:00:16]} 5. Be3 {[%emt 0:00:18]} d6 {[%emt 0:00:33]} 6. Qd2 {[%emt 0:00:34]} Rb8 {[%emt 0:02:16]} 7. Bg2 {[%emt 0:00:11]} b5 {[%emt 0:02:01]} 8. Nge2 {[%emt 0:00:08]} Nd4 {[%emt 0:02:41]} 9. O-O {[%emt 0:01:15]} e6 {[%emt 0:01:03]} 10. Nd1 {[%emt 0:10:08]} Ne7 {[%emt 0:02:55]} 11. Nc1 {[%emt 0:04:23]} O-O {[%emt 0:02:34]} 12. c3 {[%emt 0:00:04]} Ndc6 {[%emt 0:00:18]} 13. Bh6 {[%emt 0:00:05]} e5 {[%emt 0:08:20]} (13... Bxh6 $11 {deserves consideration.} 14. Qxh6 b4) 14. Bxg7 $1 $14 {[%emt 0:00:47] White is slightly better.} Kxg7 {[%emt 0:00:07]} 15. Ne3 {[%emt 0:00:48]} Qb6 {[%emt 0:03:33]} 16. f4 {[%emt 0:05:23]} f5 {[%emt 0:11:02]} 17. Ne2 {[%emt 0:02:04]} Be6 {[%emt 0:04:45]} 18. Rf2 {[%emt 0:07:20]} Rf7 {[%emt 0:03:45]} (18... c4 $1 $11 {remains equal.}) 19. Raf1 $16 {[%emt 0:05:24][%cal Og3g4] Threatens to win with g4!} Rbf8 {[%emt 0:02:48]} 20. Kh1 {[%emt 0:10:43]} (20. exf5 $16 Nxf5 21. Nxf5+ Bxf5 22. fxe5 Nxe5 23. Nf4) 20... Bc8 {[%emt 0:09:24]} 21. exf5 {[%emt 0:14:58]} gxf5 {[%emt 0:06:09] [#]} (21... Nxf5 $14 22. b4 cxb4 23. Nxf5+ Bxf5) 22. Nd5 {[%emt 0:01:22] White is more active.} (22. g4 $1 $16) 22... Nxd5 $14 {[%emt 0:01:21]} 23. Bxd5 {[%emt 0:00:05]} Rf6 {[%emt 0:00:10]} 24. Bg2 {[%emt 0:03:46]} Ne7 {[%emt 0:04:34]} 25. fxe5 {[%emt 0:02:54]} dxe5 {[%emt 0:02:11]} 26. d4 {[%emt 0:00:41]} cxd4 {[%emt 0:05:45]} 27. cxd4 {[%emt 0:00:52]} e4 {[%emt 0:03:14]} 28. Nf4 {[%emt 0:00:16] Black must now prevent Nh5+.} (28. Qg5+ {is more complex.} Ng6 29. Nf4 R6f7 30. g4) 28... Kg8 {[%emt 0:00:46]} 29. Qb4 {[%emt 0:00:47]} R8f7 {[%emt 0:06:00]} 30. Rc2 $36 {[%emt 0:03:56][%cal Oc2c8][%mdl 2048] White is pushing.} a5 {[%emt 0:01:44]} (30... Bb7 $11) 31. Qd2 {[%emt 0:02:28][%cal Oc2c8]} Bb7 {[%emt 0:00:45]} 32. Rc5 {[%emt 0:01:17]} Rd6 {[%emt 0:01:23]} 33. Rfc1 {[%emt 0:01:21]} Ng6 {[%emt 0:00:58]} 34. d5 {[%emt 0:03:53] Ne6 is the strong threat.} Ne5 $2 {[%emt 0:06:17][%mdl 8192] [#] A mistake that costs the game.} (34... Nxf4 $11 {and Black has nothing to worry.} 35. Qxf4 Qd8 (35... Rxd5 $2 {loses.} 36. Rxd5 Bxd5 37. Qg5+ Qg6 38. Qd8+ Kg7 39. Qxd5 $18) (35... Bxd5 $2 {is the wrong capture.} 36. Rc8+ Rf8 37. Rxf8+ Kxf8 38. Qxf5+ Bf7 39. Rf1 $18)) 35. Ne6 $1 $18 {[%emt 0:02:06]} Nc4 $2 {[%emt 0:00:20]} (35... Rxe6 36. dxe6 Qxe6 37. Rxb5 Nd3) 36. Qg5+ {[%emt 0:00:04] White is clearly winning.} Kh8 {[%emt 0:00:07] [#]} 37. Rc7 $1 {[%emt 0:00:49][%mdl 512]} Qxc7 {[%emt 0:03:51]} 38. Nxc7 {[%emt 0:00:08]} Rxc7 {[%emt 0:00:03]} 39. b3 {[%emt 0:00:25] Weighted Error Value: White=0.16 (very precise) /Black=0.37.  Loses game:     	---       	Black=1      Mistake:       	White=2     	Black=5      Inaccurate:     	White=5     	Black=1      OK:         	White=9     	Black=10     Best:        	---       	Black=2      Strong:       	White=2     	---} 1-0

[Event "Charlotte Spring IM-B 2024"]
[Site "Charlotte"]
[Date "2024.03.28"]
[Round "1.2"]
[White "Lima, Darcy"]
[Black "Castillo Coca, Mairebis"]
[Result "1-0"]
[ECO "A55"]
[WhiteElo "2364"]
[BlackElo "2043"]
[Annotator "RC"]
[PlyCount "105"]
[EventDate "2024.03.27"]
[EventType "tourn"]
[EventCountry "USA"]
[SourceTitle "playchess.com"]
[Source "ChessBase"]
[SourceQuality "1"]
[TimeControl "5400+30"]

1. c4 {[%emt 0:00:07]} e5 {[%emt 0:01:14]} 2. g3 {[%emt 0:00:14]} Nf6 {[%emt 0:00:40]} 3. Bg2 {[%emt 0:00:13]} Be7 {[%emt 0:01:30]} 4. Nf3 {[%emt 0:01:29]} d6 {[%emt 0:01:30]} 5. O-O {[%emt 0:05:32]} O-O {[%emt 0:00:06]} 6. Nc3 {[%emt 0:00:25]} c6 {[%emt 0:02:13]} 7. e4 {[%emt 0:08:17]} Nbd7 {[%emt 0:08:36]} 8. d4 {[%emt 0:01:00]} a6 {[%emt 0:02:39]} 9. h3 {[%emt 0:09:18]} b5 {[%emt 0:01:52]} 10. c5 {[%emt 0:00:23]} Bb7 {[%emt 0:15:54]} 11. cxd6 {[%emt 0:03:06]} Bxd6 {[%emt 0:00:03]} 12. Be3 {[%emt 0:01:30]} Re8 {[%emt 0:07:51]} 13. Qc2 {[%emt 0:05:33]} Qc7 {[%emt 0:14:35]} 14. Rad1 {[%emt 0:05:27]} Rac8 {[%emt 0:11:09]} 15. dxe5 {[%emt 0:24:39]} Nxe5 {[%emt 0:00:03]} 16. Nh4 {[%emt 0:00:49]} Nc4 {[%emt 0:02:31]} 17. Bd4 {[%emt 0:03:55]} Be5 {[%emt 0:02:36]} 18. Bxe5 {[%emt 0:01:58]} Qxe5 {[%emt 0:00:07]} 19. b3 {[%emt 0:01:48]} Nb6 {[%emt 0:08:05]} 20. Nf5 {[%emt 0:00:44]} Rcd8 {[%emt 0:00:35]} 21. f4 {[%emt 0:01:24]} Qc5+ {[%emt 0:04:32]} 22. Qf2 {[%emt 0:00:02]} Qxf2+ {[%emt 0:01:33]} 23. Kxf2 {[%emt 0:00:24]} Nc8 {[%emt 0:02:03]} 24. e5 {[%emt 0:00:55]} Nd5 {[%emt 0:10:33]} 25. Ne4 {[%emt 0:10:27]} g6 {[%emt 0:00:00]} 26. Ne3 {[%emt 0:04:04]} Nxe3 {[%emt 0:00:00]} 27. Nf6+ {[%emt 0:01:36]} Kh8 {[%emt 0:00:00]} 28. Kxe3 {[%emt 0:00:08]} Rf8 {[%emt 0:00:32]} 29. Nd7 {[%emt 0:00:36]} Rfe8 {[%emt 0:00:30]} 30. Nc5 {[%emt 0:00:36]} Ba8 {[%emt 0:00:01]} 31. Nxa6 {[%emt 0:00:13]} Ne7 {[%emt 0:00:20]} 32. Be4 {[%emt 0:02:13]} Bb7 {[%emt 0:01:32]} 33. Nc5 {[%emt 0:00:15]} Bc8 {[%emt 0:00:01]} 34. g4 {[%emt 0:00:47]} Kg7 {[%emt 0:02:04]} 35. a4 {[%emt 0:03:11]} bxa4 {[%emt 0:00:00]} 36. bxa4 {[%emt 0:00:03]} h5 {[%emt 0:00:00]} 37. Rxd8 {[%emt 0:02:46]} Rxd8 {[%emt 0:00:00]} 38. f5 {[%emt 0:00:17]} Nd5+ {[%emt 0:00:00]} 39. Kf3 {[%emt 0:00:13]} hxg4+ {[%emt 0:00:00]} 40. hxg4 {[%emt 0:00:06]} Nc3 {[%emt 0:00:28]} 41. f6+ {[%emt 0:00:37]} Kh6 {[%emt 0:00:38]} 42. Rc1 {[%emt 0:00:44]} Nxe4 {[%emt 0:01:54]} 43. Nxe4 {[%emt 0:00:26]} Rd3+ {[%emt 0:00:34]} 44. Kf4 {[%emt 0:01:15]} g5+ {[%emt 0:00:38]} 45. Nxg5 {[%emt 0:00:05]} Rd4+ {[%emt 0:00:00]} 46. Ke3 {[%emt 0:01:06]} Rxa4 {[%emt 0:00:01]} 47. Nxf7+ {[%emt 0:00:16]} Kg6 {[%emt 0:02:17]} 48. Nd6 {[%emt 0:01:46]} Bd7 {[%emt 0:00:00]} 49. Rf1 {[%emt 0:00:28]} Ra3+ {[%emt 0:00:20]} 50. Kd4 {[%emt 0:00:18]} Ra4+ {[%emt 0:00:13]} 51. Kc5 {[%emt 0:00:38]} Be6 {[%emt 0:00:52]} 52. f7 {[%emt 0:00:24]} Bxf7 {[%emt 0:00:30]} 53. Nxf7 {[%emt 0:00:17]} 1-0

[Event "Charlotte Spring IM-B 2024"]
[Site "Charlotte"]
[Date "2024.03.28"]
[Round "1.3"]
[White "Tang, Benjamin"]
[Black "Narayanan, Samrug"]
[Result "1/2-1/2"]
[ECO "C02"]
[WhiteElo "2324"]
[BlackElo "2343"]
[Annotator "RC"]
[PlyCount "52"]
[EventDate "2024.03.27"]
[EventType "tourn"]
[EventCountry "USA"]
[SourceTitle "playchess.com"]
[Source "ChessBase"]
[SourceQuality "1"]
[TimeControl "5400+30"]

1. e4 {[%emt 0:00:02]} e6 {[%emt 0:00:07]} 2. d4 {[%emt 0:00:04]} d5 {[%emt 0:00:04]} 3. e5 {[%emt 0:00:04]} c5 {[%emt 0:00:04]} 4. c3 {[%emt 0:00:03]} Nc6 {[%emt 0:00:05]} 5. Nf3 {[%emt 0:00:04]} Qb6 {[%emt 0:00:03]} 6. Bd3 {[%emt 1:33:13]} cxd4 {[%emt 0:00:07]} 7. O-O {[%emt 0:00:00]} Bd7 {[%emt 0:00:09]} 8. Re1 {[%emt 0:00:00]} Nge7 {[%emt 0:01:02]} 9. h4 {[%emt 0:00:00]} h5 {[%emt 0:02:48]} 10. Nbd2 {[%emt 0:00:00]} g6 {[%emt 0:08:24]} 11. Rb1 {[%emt 0:00:00]} Bg7 {[%emt 0:09:58]} 12. Nb3 {[%emt 0:00:00]} a5 {[%emt 0:06:12]} 13. Nbxd4 {[%emt 0:00:00]} O-O {[%emt 0:05:27]} 14. Bg5 {[%emt 0:00:00]} Rfe8 {[%emt 0:13:13]} 15. Qe2 {[%emt 0:00:00]} Nf5 {[%emt 0:05:53]} 16. Nb5 {[%emt 0:00:00]} Nxe5 {[%emt 0:18:29]} 17. Nxe5 {[%emt 0:00:00]} Bxe5 {[%emt 0:00:07]} 18. Qxe5 {[%emt 0:00:00]} Bxb5 {[%emt 0:00:04]} 19. Bxf5 {[%emt 0:00:00]} exf5 {[%emt 0:00:07]} 20. Qxd5 {[%emt 0:00:00]} Qc6 {[%emt 0:00:06]} 21. Qd2 {[%emt 0:00:00]} Qd7 {[%emt 0:09:49]} 22. Qxd7 {[%emt 0:00:00]} Bxd7 {[%emt 0:00:09]} 23. Rbd1 {[%emt 0:00:00]} Rxe1+ {[%emt 0:00:45]} 24. Rxe1 {[%emt 0:00:00]} Re8 {[%emt 0:00:07]} 25. Rxe8+ {[%emt 0:00:00]} Bxe8 {[%emt 0:00:03]} 26. Bf6 {[%emt 0:00:00]} Bc6 {[%emt 0:00:11]} 1/2-1/2

[Event "Charlotte Spring IM-B 2024"]
[Site "Charlotte"]
[Date "2024.03.28"]
[Round "1.4"]
[White "Jiang, Andrew"]
[Black "Becerra Rivero, Julio"]
[Result "0-1"]
[ECO "C08"]
[WhiteElo "2181"]
[BlackElo "2411"]
[Annotator "TA"]
[PlyCount "77"]
[EventDate "2024.03.27"]
[EventType "tourn"]
[EventCountry "USA"]
[SourceTitle "playchess.com"]
[Source "ChessBase"]
[SourceQuality "1"]
[TimeControl "5400+30"]

{[%evp 17,77,0,0,0,20,0,0,0,-9,-19,0,-14,-12,-19,0,-17,-7,-25,-15,-12,-7,-11,-22,-18,-15,-12,-14,-36,-31,-40,-27,-33,-41,-35,-30,-56,-16,-13,-20,-16,-16,-22,-1,0,0,0,0,-31,14,0,0,0,0,0,0,-34,-9,-13,-11,-128,-112,-218]} 1. e4 {[%emt 0:00:04]} c5 {[%emt 0:00:05]} 2. c3 {[%emt 0:00:08]} e6 {[%emt 0:00:05]} 3. d4 {[%emt 0:00:08]} d5 {[%emt 0:00:03]} 4. exd5 {[%emt 0:00:27]} exd5 {[%emt 0:00:05]} 5. Bb5+ {[%emt 0:00:09]} Nc6 {[%emt 0:00:19]} 6. Nf3 {[%emt 0:00:12]} Bd6 {[%emt 0:00:24]} 7. dxc5 {[%emt 0:00:53]} Bxc5 {[%emt 0:00:07]} 8. O-O {[%emt 0:00:08]} Nf6 {[%emt 0:01:35]} 9. Nbd2 {[%emt 0:17:38][%cal Bb1d2,Bd2b3,Bb3d4,Bd4b5][%mdl 32]} O-O {[%emt 0:03:19]} 10. Nb3 {[%emt 0:00:53]} Bb6 {[%emt 0:01:30]} 11. Nbd4 {[%emt 0:14:22]} Qd6 {[%emt 0:02:33]} 12. Be2 {[%emt 0:13:19] The position is equal.} Re8 {[%emt 0:12:43]} 13. Be3 {[%emt 0:01:20]} Bg4 {[%emt 0:03:23]} 14. a4 {[%emt 0:08:22]} h6 {[%emt 0:09:33]} 15. Re1 {[%emt 0:03:59]} Ne4 {[%emt 0:17:12]} 16. Nb5 {[%emt 0:02:50]} Qd8 {[%emt 0:00:27]} 17. Bxb6 {[%emt 0:03:55]} Qxb6 {[%emt 0:00:07]} 18. Nfd4 {[%emt 0:00:13]} Bxe2 {[%emt 0:00:27]} 19. Rxe2 {[%emt 0:00:14]} a6 {[%emt 0:01:45]} 20. Nxc6 {[%emt 0:31:16]} bxc6 {[%emt 0:44:48]} 21. Nd4 {[%emt 0:00:00]} c5 {[%emt 0:00:30]} 22. Nf3 {[%emt 0:01:00]} Nf6 {[%emt 0:00:00]} 23. Rxe8+ {[%emt 0:00:00]} Rxe8 {[%emt 0:00:00]} 24. Rb1 {[%emt 0:00:00]} a5 {[%emt 0:00:00]} 25. h3 {[%emt 0:00:00]} Rb8 {[%emt 0:00:00]} 26. Ne5 {[%emt 0:00:00]} Qd6 {[%emt 0:00:00]} 27. Nc4 {[%emt 0:00:00]} Qc7 {[%emt 0:00:00]} 28. Ne3 {[%emt 0:00:00]} Qe5 {[%emt 0:00:00]} 29. Qc2 {[%emt 0:00:00]} d4 {[%emt 0:00:00]} 30. Nc4 {[%emt 0:00:00][%csl LRa5,LRe5]} Qd5 {[%emt 0:00:00]} 31. Qd3 {[%emt 0:00:00]} Re8 {[%emt 0:00:00]} 32. Nxa5 {[%emt 0:00:00]} Qa2 {[%emt 0:00:00]} (32... dxc3 {simplifies} 33. Qxd5 Nxd5 34. bxc3 Nxc3 35. Rb3 Nxa4 36. g3 Re2) 33. Nc4 {[%emt 0:00:00]} Nd5 {[%emt 0:00:00][%cal Bf6d5,Bd5c3,Bc3e2][%mdl 32]} 34. g3 {[%emt 0:00:00] Inhibits Nf4.} (34. cxd4 $2 {is the wrong capture.} Nf4 35. Qf5 (35. Qc2 $2 cxd4 $19) 35... Ne2+ (35... cxd4 36. Na3 $16) 36. Kh2 Qxc4 37. dxc5 Qxa4 $19) 34... dxc3 {[%emt 0:00:00]} 35. bxc3 {[%emt 0:00:00]} Nxc3 {[%emt 0:07:00]} 36. Rb7 {[%emt 0:00:21]} Qa1+ {[%emt 0:00:00]} 37. Kg2 {[%emt 0:00:34] [#] Hoping for Nd6.} Ne2 $1 {[%emt 0:01:00]} (37... Nxa4 $2 {perishes.} 38. Qd7 Rf8 39. Ra7 $18) 38. Rb1 {[%emt 0:04:19]} (38. Qb1 $1 $11 {was the only way to keep the balance.} Qxa4 39. Qb5 Qxb5 40. Rxb5) 38... Qxa4 $17 {[%emt 0:00:00]} 39. Kh2 {[%emt 0:02:39] Weighted Error Value: White=0.15 (very precise) /Black=0.07 (flawless) .  Mistake:       	White=2     	---        Inaccurate:     	White=4     	Black=2      OK:         	White=12    	Black=11     Best:        	White=2     	Black=2      Strong:       	---       	Black=1} (39. Nd6 $17 Qc6+ 40. f3) 0-1

[Event "Charlotte Spring IM-B 2024"]
[Site "Charlotte"]
[Date "2024.03.28"]
[Round "1.5"]
[White "Chirilov, James A"]
[Black "Nandhakumar, Vaseegaran"]
[Result "0-1"]
[ECO "C13"]
[WhiteElo "2082"]
[BlackElo "2251"]
[Annotator "RC"]
[PlyCount "92"]
[EventDate "2024.03.27"]
[EventType "tourn"]
[EventCountry "USA"]
[SourceTitle "playchess.com"]
[Source "ChessBase"]
[SourceQuality "1"]
[TimeControl "5400+30"]

1. e4 {[%emt 0:00:08]} e6 {[%emt 0:00:06]} 2. d4 {[%emt 0:00:17]} d5 {[%emt 0:00:07]} 3. Nc3 {[%emt 0:00:14]} dxe4 {[%emt 0:00:08]} 4. Nxe4 {[%emt 0:00:09]} Nf6 {[%emt 0:00:05]} 5. Bg5 {[%emt 0:00:23]} Be7 {[%emt 0:00:29]} 6. Bxf6 {[%emt 0:00:33]} gxf6 {[%emt 0:00:09]} 7. Nf3 {[%emt 0:00:19]} f5 {[%emt 0:00:17]} 8. Nc3 {[%emt 0:00:43]} a6 {[%emt 0:00:17]} 9. a4 {[%emt 0:00:35]} Bf6 {[%emt 0:00:11]} 10. Bc4 {[%emt 0:01:46]} Nc6 {[%emt 0:00:06]} 11. d5 {[%emt 0:03:04]} Na5 {[%emt 0:00:02]} 12. Ba2 {[%emt 0:01:08]} c6 {[%emt 0:00:19]} 13. d6 {[%emt 0:04:02]} Qb6 {[%emt 0:00:08]} 14. Rb1 {[%emt 0:01:56]} Bd7 {[%emt 0:00:26]} 15. O-O {[%emt 0:01:47]} c5 {[%emt 0:02:34]} 16. Qd2 {[%emt 0:02:30]} O-O-O {[%emt 0:02:48]} 17. Rfe1 {[%emt 0:11:34]} Rhg8 {[%emt 0:10:03]} 18. g3 {[%emt 0:31:50]} Nc6 {[%emt 0:10:56]} 19. Qh6 {[%emt 0:08:32]} Nd4 {[%emt 0:01:39]} 20. Nxd4 {[%emt 0:00:19]} Bxd4 {[%emt 0:00:23]} 21. Ne2 {[%emt 0:01:28]} Rg6 {[%emt 0:03:34]} 22. Qf4 {[%emt 0:02:04]} Rg4 {[%emt 0:02:28]} 23. Qd2 {[%emt 0:02:04]} Qxd6 {[%emt 0:02:43]} 24. Nxd4 {[%emt 0:02:53]} Qxd4 {[%emt 0:00:31]} 25. Qe2 {[%emt 0:02:55]} Qxa4 {[%emt 0:04:06]} 26. Bb3 {[%emt 0:00:51]} Qe4 {[%emt 0:01:03]} 27. f3 {[%emt 0:02:41]} Qxe2 {[%emt 0:00:32]} 28. Rxe2 {[%emt 0:00:02]} Rd4 {[%emt 0:01:03]} 29. Re5 {[%emt 0:01:54]} b6 {[%emt 0:00:36]} 30. c3 {[%emt 0:00:15]} Rd2 {[%emt 0:00:37]} 31. Bc4 {[%emt 0:01:05]} Bb5 {[%emt 0:00:07]} 32. Bxb5 {[%emt 0:00:11]} axb5 {[%emt 0:00:05]} 33. b4 {[%emt 0:00:14]} Rd1+ {[%emt 0:00:57]} 34. Rxd1 {[%emt 0:00:03]} Rxd1+ {[%emt 0:00:02]} 35. Kf2 {[%emt 0:01:22]} Rd5 {[%emt 0:01:03]} 36. Re2 {[%emt 0:00:19]} Rd3 {[%emt 0:00:11]} 37. Rc2 {[%emt 0:01:50]} Kb7 {[%emt 0:01:32]} 38. c4 {[%emt 0:02:26]} bxc4 {[%emt 0:00:43]} 39. b5 {[%emt 0:01:17]} c3 {[%emt 0:00:14]} 40. Ke2 {[%emt 0:00:22]} Rd2+ {[%emt 0:00:17]} 41. Rxd2 {[%emt 0:00:02]} cxd2 {[%emt 0:00:01]} 42. Kxd2 {[%emt 0:00:19]} Kc7 {[%emt 0:00:07]} 43. Kd3 {[%emt 0:00:30]} Kd6 {[%emt 0:00:01]} 44. Kc4 {[%emt 0:00:08]} e5 {[%emt 0:00:13]} 45. h3 {[%emt 0:00:53]} e4 {[%emt 0:00:09]} 46. f4 {[%emt 0:00:09]} h5 {[%emt 0:00:10]} 0-1

[Event "Charlotte Spring IM-B 2024"]
[Site "Charlotte"]
[Date "2024.03.28"]
[Round "2.1"]
[White "Diaz Charpentier, Kristel Meliss"]
[Black "Nandhakumar, Vaseegaran"]
[Result "0-1"]
[ECO "E93"]
[WhiteElo "1990"]
[BlackElo "2251"]
[Annotator "RC"]
[PlyCount "82"]
[EventDate "2024.03.27"]
[EventType "tourn"]
[EventCountry "USA"]
[SourceTitle "playchess.com"]
[Source "ChessBase"]
[SourceQuality "1"]
[TimeControl "5400+30"]

1. d4 {[%emt 0:00:32]} Nf6 {[%emt 0:00:49]} 2. c4 {[%emt 0:00:06]} d6 {[%emt 0:00:29]} 3. Nc3 {[%emt 0:00:18]} e5 {[%emt 0:00:02]} 4. Nf3 {[%emt 0:05:35]} Nbd7 {[%emt 0:00:02]} 5. e4 {[%emt 0:00:09]} g6 {[%emt 0:00:15]} 6. Be2 {[%emt 0:01:53]} Bg7 {[%emt 0:00:16]} 7. d5 {[%emt 0:02:15]} O-O {[%emt 0:00:28]} 8. h3 {[%emt 0:01:04]} a5 {[%emt 0:02:54]} 9. g4 {[%emt 0:03:31]} Nc5 {[%emt 0:01:14]} 10. Qc2 {[%emt 0:01:24]} c6 {[%emt 0:01:21]} 11. Bg5 {[%emt 0:05:34]} cxd5 {[%emt 0:01:48]} 12. cxd5 {[%emt 0:00:13]} Bd7 {[%emt 0:00:23]} 13. O-O {[%emt 0:06:52]} Rc8 {[%emt 0:00:41]} 14. Nd2 {[%emt 0:01:33]} b5 {[%emt 0:00:39]} 15. Bxf6 {[%emt 0:11:48]} Qxf6 {[%emt 0:00:30]} 16. Bxb5 {[%emt 0:00:42]} Bxb5 {[%emt 0:00:53]} 17. Nxb5 {[%emt 0:00:08]} Ne6 {[%emt 0:00:32]} 18. Qb3 {[%emt 0:05:38]} Nf4 {[%emt 0:00:55]} 19. Rfe1 {[%emt 0:01:25]} Qh4 {[%emt 0:01:46]} 20. Qg3 {[%emt 0:09:42]} Nxh3+ {[%emt 0:03:47]} 21. Kh2 {[%emt 0:03:25]} Qh6 {[%emt 0:03:55]} 22. g5 {[%emt 0:04:29]} Nxg5+ {[%emt 0:03:41]} 23. Kg2 {[%emt 0:01:22]} Nh3 {[%emt 0:00:31]} 24. Nxd6 {[%emt 0:04:34]} Qxd2 {[%emt 0:03:56]} 25. Kxh3 {[%emt 0:01:04]} Rc2 {[%emt 0:01:04]} 26. Rad1 {[%emt 0:02:22]} Qb4 {[%emt 0:01:18]} 27. Nf5 {[%emt 0:00:12]} Qxb2 {[%emt 0:10:20]} 28. Rb1 {[%emt 0:08:19]} Qc3 {[%emt 0:01:42]} 29. Re3 {[%emt 0:02:26]} Qc7 {[%emt 0:07:03]} 30. Nxg7 {[%emt 0:04:36]} Kxg7 {[%emt 0:00:10]} 31. Rbb3 {[%emt 0:00:54]} Rxa2 {[%emt 0:05:31]} 32. Rec3 {[%emt 0:01:22]} Qe7 {[%emt 0:02:03]} 33. Rf3 {[%emt 0:02:26]} Re2 {[%emt 0:02:48]} 34. Rfe3 {[%emt 0:01:35]} Rxe3 {[%emt 0:00:19]} 35. Qxe3 {[%emt 0:00:02]} a4 {[%emt 0:02:50]} 36. Ra3 {[%emt 0:01:03]} Rb8 {[%emt 0:00:21]} 37. Kg2 {[%emt 0:00:35]} Rb4 {[%emt 0:01:11]} 38. Rc3 {[%emt 0:01:09]} Qh4 {[%emt 0:01:26]} 39. Kf3 {[%emt 0:01:43]} Qh3+ {[%emt 0:02:17]} 40. Ke2 {[%emt 0:00:09]} Rb2+ {[%emt 0:00:09]} 41. Kd3 {[%emt 0:00:11]} Qf1+ {[%emt 0:38:41]} 0-1

[Event "Charlotte Spring IM-B 2024"]
[Site "Charlotte"]
[Date "2024.03.28"]
[Round "2.2"]
[White "Becerra Rivero, Julio"]
[Black "Chirilov, James A"]
[Result "1-0"]
[ECO "A26"]
[WhiteElo "2411"]
[BlackElo "2082"]
[Annotator "TA"]
[PlyCount "67"]
[EventDate "2024.03.27"]
[EventType "tourn"]
[EventCountry "USA"]
[SourceTitle "playchess.com"]
[Source "ChessBase"]
[SourceQuality "1"]
[TimeControl "5400+30"]

{[%evp 15,67,25,21,33,58,52,55,62,66,38,36,29,47,40,52,37,45,29,54,39,64,34,91,85,90,91,106,106,77,54,58,52,50,60,227,226,209,222,252,276,364,352,384,416,632,629,750,736,2060,1850,29995,29996,29996,29997]} 1. c4 {[%emt 0:06:44]} Nf6 {[%emt 0:00:31]} 2. Nc3 {[%emt 0:00:06]} g6 {[%emt 0:00:59]} 3. g3 {[%emt 0:00:25]} Bg7 {[%emt 0:00:23]} 4. Bg2 {[%emt 0:00:13]} O-O {[%emt 0:00:16]} 5. e4 {[%emt 0:01:44]} d6 {[%emt 0:00:27]} 6. Nge2 {[%emt 0:00:41]} e5 {[%emt 0:01:10]} 7. O-O {[%emt 0:00:24]} Nc6 {[%emt 0:07:26]} 8. d3 {[%emt 0:00:53]} Nd7 {[%emt 0:02:16]} 9. f4 {[%emt 0:02:10]} f5 {[%emt 0:03:12]} 10. exf5 {[%emt 0:01:40]} gxf5 {[%emt 0:00:23]} 11. Be3 {[%emt 0:03:09] White is slightly better.} Nf6 {[%emt 0:04:25]} 12. h3 {[%emt 0:06:03]} Be6 {[%emt 0:06:33]} 13. Nd5 {[%emt 0:01:47]} Ne7 {[%emt 0:24:27]} 14. Nxf6+ {[%emt 0:04:21]} Bxf6 {[%emt 0:00:19]} 15. Qd2 {[%emt 0:00:32]} c6 {[%emt 0:01:30]} 16. Rae1 {[%emt 0:03:20]} Ng6 {[%emt 0:03:04]} 17. b3 {[%emt 0:01:11]} Qe7 {[%emt 0:02:30]} 18. d4 {[%emt 0:04:00]} Rfd8 {[%emt 0:08:05]} (18... e4 $14) 19. d5 $16 {[%emt 0:04:27]} Bd7 {[%emt 0:02:11]} 20. dxc6 {[%emt 0:04:18]} bxc6 {[%emt 0:02:05]} 21. Rd1 {[%emt 0:01:59]} Be8 {[%emt 0:01:32]} 22. g4 {[%emt 0:09:37] White is more active.} Nh4 {[%emt 0:04:17]} 23. Ng3 $36 {[%emt 0:00:47][%mdl 2048] White is pushing.} e4 $1 {[%emt 0:01:58]} 24. Qa5 {[%emt 0:04:26]} Nxg2 $2 {[%emt 0:06:49] [#] Black cannot hold the game after this.} ({Black should play} 24... Bf7 $14) 25. Kxg2 $18 {[%emt 0:00:47]} fxg4 {[%emt 0:01:20]} 26. hxg4 {[%emt 0:03:00][%cal Bh3g4,Bg4g5][%mdl 32]} Bd7 {[%emt 0:02:37]} 27. Qh5 {[%emt 0:04:27]} (27. Bxa7 $2 Bxg4 28. Nf5 Bxf5 (28... Qxa7 $2 29. Qxa7 Bf3+ 30. Rxf3 $19) 29. Qxf5 Qg7+ (29... Rxa7 $2 30. Rd2 $19) 30. Kh2 Qh6+ (30... Rxa7 $2 31. Rg1 $18) 31. Qh3 Qxh3+ 32. Kxh3 Rxa7 $19) 27... d5 {[%emt 0:03:10]} 28. g5 {[%emt 0:01:22]} (28. cxd5 Be8 29. Qh3 (29. Qf5 cxd5 30. Rxd5 Bg6 $18) 29... Rxd5 $18) 28... Bc3 {[%emt 0:10:35]} 29. f5 {[%emt 0:05:48][%cal Bf4f5,Bf5g6][%mdl 32]} (29. cxd5 cxd5 30. Rxd5 Bh3+ 31. Qxh3 (31. Kxh3 Rxd5 32. f5 Rd3 $11) 31... Rxd5 $14) 29... d4 {[%emt 0:00:00]} (29... Qg7 $142 30. g6 (30. cxd5 cxd5 31. g6 Bf6 $16) 30... hxg6 31. fxg6 Rf8 32. cxd5 (32. Bh6 Qe5 $18) 32... Qh8 33. Rxf8+ Rxf8 34. dxc6 (34. Bxa7 Qxh5 35. Nxh5 Bg4 $17) 34... Qxh5 35. Nxh5 Bg4) 30. Bf4 {[%emt 0:02:22]} ({Not} 30. Bxd4 Be8 31. Qh3 (31. Bf6 $2 Bxh5 32. Bxe7 Bf3+ 33. Kf2 Rxd1 $19) 31... Bxd4 $18 (31... Rxd4 $2 32. f6 $18)) 30... e3 {[%emt 0:00:00][%cal Od7f5,Be4e3,Be3e2][%mdl 32]} 31. g6 {[%emt 0:00:38][%cal Of5f6] [#] White wants to mate with f6!} hxg6 {[%emt 0:00:00]} 32. fxg6 {[%emt 0:01:12] Be5 would kill now.} (32. Qxg6+ Qg7 33. Qxg7+ Kxg7 34. Be5+ Kf7 $18) 32... e2 {[%emt 0:00:10]} 33. Be5 {[%emt 0:02:42][%csl Ge5][%cal Rh5h8]} ({Less strong is} 33. Qxe2 Qxe2+ 34. Nxe2 c5 $16) 33... Bh3+ {[%emt 0:01:47]} 34. Qxh3 {[%emt 0:01:02] Weighted Error Value: White=0.04 (flawless) /Black=0.55.  Loses game:     	---       	Black=1      Mistake:       	---       	Black=2      Inaccurate:     	White=2     	Black=1      OK:         	White=9     	Black=3      Best:        	White=2     	Black=1      Strong:       	---       	Black=1} 1-0